bitfinex/quotes_SOLUSD_20251125
["timestamp","ask_amount","ask_price","bid_price","bid_amount"]
[1764062001882,20.70520998,135.29,135.25,4.0]
[1764062002858,19.98520998,135.29,135.26,0.7]
[1764062003083,3.67634598,135.29,135.26,0.7]
[1764062003383,19.98520998,135.29,135.26,0.7]
[1764062003557,16.308864,135.29,135.26,4.37634598]
[1764062003758,16.308864,135.29,135.26,0.7]
[1764062003980,16.308864,135.29,135.26,4.37634598]
[1764062004561,16.998864,135.29,135.27,3.3]
[1764062005055,16.998864,135.29,135.24,107.53625264]
[1764062005056,0.69,135.28,135.24,4.34634598]
[1764062005257,0.69,135.28,135.25,3.97]
[1764062006088,4.41468029,135.29,135.25,3.97]
[1764062006382,16.308864,135.28,135.25,0.67]
[1764062006578,16.308864,135.28,135.26,3.3]
[1764062007286,16.998864,135.28,135.26,3.3]
[1764062007482,17.73719831,135.29,135.26,3.3]
[1764062007683,0.69,135.28,135.26,3.3]
[1764062007889,16.998864,135.28,135.26,3.3]
[1764062008266,0.69,135.27,135.23,0.67]
[1764062008583,0.69,135.27,135.24,3.3]
[1764062008965,0.69,135.27,135.24,3.97]
[1764062010092,1.71265745,135.27,135.23,4.34634598]
[1764062010298,0.73833431,135.27,135.25,3.3]
[1764062010493,16.998864,135.29,135.25,6.97634598]
[1764062010786,16.308864,135.27,135.26,4.34634598]
[1764062010993,16.308864,135.27,135.26,3.67634598]
[1764062011193,0.73833431,135.3,135.26,3.67634598]
[1764062011392,0.73833431,135.3,135.25,10.69350425]
[1764062011393,1.42833431,135.31,135.27,3.67634598]
[1764062011571,0.73833431,135.31,135.28,3.3]
[1764062011770,17.04719831,135.31,135.28,3.97]
[1764062011970,16.308864,135.3,135.29,0.67]
[1764062012428,16.308864,135.3,135.28,3.97]
[1764062012905,16.308864,135.3,135.28,0.67]
[1764062013088,16.308864,135.3,135.29,3.3]
[1764062013271,0.69,135.3,135.26,4.34634598]
[1764062013471,17.73719831,135.3,135.27,3.3]
[1764062013696,17.73719831,135.3,135.28,3.3]
[1764062016202,17.04719831,135.3,135.28,3.3]
[1764062016403,1.42833431,135.3,135.28,3.3]
[1764062017217,17.73719831,135.3,135.28,3.3]
[1764062017516,17.04719831,135.3,135.29,3.3]
[1764062017714,17.04719831,135.3,135.24,0.67]
[1764062017715,16.308864,135.29,135.24,0.67]
[1764062017919,0.73833431,135.28,135.25,3.3]
[1764062018091,1.42833431,135.28,135.25,3.97]
[1764062018889,1.42833431,135.28,135.22,100.0]
[1764062018890,3.67634598,135.26,135.22,0.67]
[1764062019082,16.308864,135.25,135.23,3.3]
[1764062019285,16.998864,135.25,135.21,3.67634598]
[1764062019501,16.998864,135.25,135.22,0.67]
[1764062019696,0.69,135.25,135.23,3.3]
[1764062020215,0.69,135.25,135.24,3.3]
[1764062021208,4.36634598,135.25,135.24,3.3]
[1764062021394,4.36634598,135.26,135.21,3.67634598]
[1764062021598,4.36634598,135.26,135.22,3.97]
[1764062021798,0.97432314,135.26,135.22,3.97]
[1764062021999,4.65066912,135.26,135.22,3.97]
[1764062022426,0.97432314,135.26,135.22,3.97]
[1764062023103,0.69,135.25,135.22,3.97]
[1764062024695,0.69,135.25,135.21,0.67]
[1764062024920,0.69,135.25,135.22,6.97634598]
[1764062025306,0.69,135.25,135.22,7.64634598]
[1764062026308,16.308864,135.24,135.23,3.67634598]
[1764062026614,16.308864,135.24,135.22,3.3]
[1764062026820,17.28318714,135.23,135.16,50.0]
[1764062027006,0.28432314,135.2,135.17,3.3]
[1764062027439,39.22849609,135.19,135.17,3.3]
[1764062028338,22.22963209,135.19,135.18,56.97634598]
[1764062028513,0.73833431,135.26,135.2,50.0]
[1764062028717,22.21975336,135.25,135.23,7.39480884]
[1764062029013,0.69,135.3,135.24,3.3]
[1764062029232,23.64315159,135.29,135.22,0.67]
[1764062029437,8.80994492,135.28,135.23,3.3]
[1764062029725,16.308864,135.25,135.23,3.3]
[1764062029929,0.73833431,135.24,135.23,3.3]
[1764062030108,16.308864,135.25,135.21,0.67]
[1764062030307,1.42833431,135.24,135.22,3.3]
[1764062031429,16.308864,135.23,135.22,3.3]
[1764062031902,4.03833431,135.24,135.22,5.65449229]
[1764062032103,0.73833431,135.24,135.22,6.32449229]
[1764062032310,16.308864,135.24,135.23,3.02449229]
[1764062032508,0.73833431,135.26,135.23,3.02449229]
[1764062032728,16.308864,135.25,135.24,2.35449229]
[1764062033311,0.73833431,135.26,135.24,2.35449229]
[1764062033519,0.73833431,135.26,135.25,3.3]
[1764062033700,17.04719831,135.26,135.25,3.3]
[1764062036631,17.04719831,135.26,135.23,0.67]
[1764062036929,3.07449229,135.25,135.18,100.0]
[1764062037237,0.73833431,135.24,135.19,6.35449229]
[1764062037461,3.0928266,135.24,135.19,6.35449229]
[1764062037644,3.7728266,135.24,135.2,4.02]
[1764062039236,25.99587189,135.24,135.2,0.72]
[1764062039427,25.99587189,135.24,135.21,3.3]
[1764062039428,16.308864,135.22,135.21,3.3]
[1764062039815,16.308864,135.22,135.21,4.02]
[1764062040138,23.3816906,135.25,135.21,4.02]
[1764062040340,21.02719831,135.25,135.21,4.02]
[1764062040644,21.02719831,135.25,135.22,0.72]
[1764062040847,20.34719831,135.25,135.22,0.72]
[1764062041044,17.04719831,135.25,135.22,0.72]
[1764062041351,17.72719831,135.25,135.22,0.72]
[1764062041643,16.308864,135.23,135.22,0.72]
[1764062041845,16.308864,135.23,135.21,4.02]
[1764062042642,16.988864,135.23,135.22,3.3]
[1764062042845,17.72719831,135.23,135.22,3.3]
[1764062043340,20.0816906,135.23,135.22,3.3]
[1764062043655,16.308864,135.21,135.18,0.72]
[1764062043843,16.308864,135.2,135.18,0.72]
[1764062044148,16.308864,135.2,135.19,3.3]
[1764062045647,16.308864,135.2,135.18,0.72]
[1764062045832,16.308864,135.2,135.19,3.3]
[1764062047654,18.66335629,135.2,135.19,3.3]
[1764062047825,18.66335629,135.2,135.17,0.72]
[1764062047826,16.308864,135.19,135.17,0.72]
[1764062048025,16.308864,135.19,135.18,3.3]
[1764062048440,16.308864,135.2,135.18,4.02]
[1764062048948,16.308864,135.2,135.19,0.72]
[1764062049248,16.308864,135.2,135.19,4.02]
[1764062049552,16.308864,135.19,135.15,2.35449229]
[1764062049751,16.308864,135.19,135.16,13.05295195]
[1764062050047,16.308864,135.2,135.16,13.05295195]
[1764062050256,16.308864,135.2,135.17,0.72]
[1764062050742,0.73833431,135.22,135.18,2.35449229]
[1764062051050,16.308864,135.21,135.19,3.3]
[1764062051355,16.308864,135.21,135.19,4.02]
[1764062051555,2.35449229,135.23,135.19,3.3]
[1764062051556,3.0928266,135.23,135.19,3.3]
[1764062051756,16.308864,135.21,135.2,0.72]
[1764062052465,16.308864,135.21,135.19,3.3]
[1764062052752,16.308864,135.21,135.19,4.02]
[1764062054754,16.308864,135.21,135.2,0.72]
[1764062054956,16.308864,135.21,135.19,0.72]
[1764062055155,16.308864,135.21,135.2,3.3]
[1764062055354,17.04719831,135.21,135.2,3.3]
[1764062056351,16.308864,135.21,135.2,3.3]
[1764062057737,19.34335629,135.21,135.16,0.72]
[1764062057944,3.7728266,135.2,135.17,4.02]
[1764062058344,3.0928266,135.2,135.17,4.02]
[1764062058540,3.0928266,135.2,135.17,0.72]
[1764062058741,16.308864,135.19,135.18,3.3]
[1764062061059,18.66335629,135.21,135.18,4.02]
[1764062061236,10.49179692,135.22,135.19,0.72]
[1764062061435,7.39388069,135.25,135.19,0.72]
[1764062061436,0.73833431,135.25,135.2,2.35449229]
[1764062061639,2.35449229,135.22,135.21,3.3]
[1764062061937,2.35449229,135.22,135.19,0.72]
[1764062062143,3.0928266,135.21,135.2,3.3]
[1764062062536,19.4016906,135.21,135.2,3.3]
[1764062063148,3.7628266,135.21,135.2,3.3]
[1764062063836,1.40833431,135.21,135.2,3.3]
[1764062064037,3.0928266,135.21,135.2,3.3]
[1764062066258,3.7628266,135.21,135.2,3.3]
[1764062067838,3.7628266,135.21,135.17,0.67]
[1764062068037,16.308864,135.19,135.18,3.3]
[1764062068438,16.308864,135.19,135.18,3.97]
[1764062072043,16.308864,135.19,135.18,0.67]
[1764062072245,16.308864,135.19,135.18,3.97]
[1764062072639,16.308864,135.19,135.15,7.39908855]
[1764062072842,16.308864,135.18,135.17,0.67]
[1764062074769,16.308864,135.18,135.17,3.97]
[1764062075062,16.308864,135.18,135.14,9.75397816]
[1764062075268,16.308864,135.18,135.16,0.67]
[1764062075269,19.4016906,135.18,135.16,0.67]
[1764062075848,16.308864,135.17,135.16,0.67]
[1764062076454,16.308864,135.17,135.16,3.3]
[1764062077168,16.308864,135.17,135.15,0.67]
[1764062077367,16.308864,135.17,135.16,3.3]
[1764062077969,16.308864,135.17,135.16,3.97]
[1764062078156,0.73833431,135.19,135.16,3.97]
[1764062078481,2.35449229,135.2,135.17,0.67]
[1764062078646,3.0928266,135.21,135.17,0.67]
[1764062078848,3.7628266,135.21,135.17,0.67]
[1764062079047,2.35449229,135.2,135.17,0.67]
[1764062079271,1.40833431,135.21,135.17,0.67]
[1764062079471,2.35449229,135.2,135.17,0.67]
[1764062079664,2.35449229,135.2,135.17,8.0680628]
[1764062079665,18.66335629,135.2,135.17,8.0680628]
[1764062080277,3.0928266,135.22,135.18,0.67]
[1764062080568,3.0928266,135.22,135.19,3.3]
[1764062080767,3.7628266,135.22,135.19,3.97]
[1764062082360,2.35449229,135.21,135.19,3.3]
[1764062082560,0.73833431,135.2,135.19,3.3]
[1764062083257,0.73833431,135.2,135.19,3.97]
[1764062083866,0.73833431,135.2,135.19,0.67]
[1764062084072,0.73833431,135.2,135.19,3.97]
[1764062084272,2.35449229,135.21,135.19,3.97]
[1764062084466,0.73833431,135.2,135.19,3.97]
[1764062084874,0.73833431,135.2,135.19,3.3]
[1764062085082,2.35449229,135.21,135.19,3.3]
[1764062085682,0.73833431,135.2,135.19,3.3]
[1764062086172,2.35449229,135.21,135.19,3.3]
[1764062086566,0.73833431,135.2,135.19,3.3]
[1764062086766,0.73833431,135.2,135.19,3.97]
[1764062086965,0.73833431,135.2,135.17,0.67]
[1764062086966,3.0928266,135.2,135.17,0.67]
[1764062087165,3.0928266,135.2,135.18,3.97]
[1764062087577,3.0928266,135.2,135.18,3.3]
[1764062087766,16.308864,135.19,135.18,3.97]
[1764062088271,16.978864,135.19,135.18,3.3]
[1764062088473,19.33335629,135.19,135.18,3.3]
[1764062088657,18.66335629,135.19,135.18,3.3]
[1764062089362,16.308864,135.17,135.16,0.67]
[1764062089566,16.308864,135.17,135.14,8.0697046]
[1764062089779,18.66335629,135.17,135.15,3.97]
[1764062090275,16.308864,135.16,135.14,0.67]
[1764062090461,16.308864,135.16,135.15,3.3]
[1764062090663,16.308864,135.17,135.15,11.3691372]
[1764062090984,16.308864,135.17,135.16,0.67]
[1764062091955,16.308864,135.19,135.16,4.35356196]
[1764062092367,16.308864,135.19,135.17,0.67]
[1764062092661,16.308864,135.19,135.18,3.3]
[1764062093354,16.308864,135.19,135.18,3.95]
[1764062093975,17.04719831,135.21,135.18,3.95]
[1764062094175,16.308864,135.19,135.18,3.3]
[1764062094767,16.308864,135.19,135.18,3.95]
[1764062097385,3.68356196,135.19,135.15,7.3991056]
[1764062097560,3.68356196,135.19,135.16,4.02]
[1764062097969,3.68356196,135.19,135.17,0.72]
[1764062098368,16.308864,135.19,135.17,0.72]
[1764062098586,16.308864,135.19,135.18,3.3]
[1764062098964,19.99242596,135.19,135.18,3.3]
[1764062099882,19.99242596,135.19,135.18,4.02]
[1764062100987,16.308864,135.19,135.18,4.02]
[1764062103362,20.73076027,135.19,135.18,3.3]
[1764062103559,20.73076027,135.19,135.18,4.02]
[1764062103786,20.73076027,135.19,135.18,3.3]
[1764062104193,16.308864,135.19,135.18,4.02]
[1764062104789,3.68356196,135.2,135.18,4.02]
[1764062104990,16.308864,135.19,135.18,4.02]
[1764062105378,19.99242596,135.21,135.18,11.41751612]
[1764062105583,16.308864,135.2,135.19,0.72]
[1764062108386,16.308864,135.2,135.19,4.02]
[1764062108872,19.99242596,135.2,135.19,3.3]
[1764062109264,19.99242596,135.2,135.17,0.72]
[1764062109481,16.308864,135.2,135.19,3.3]
[1764062110297,24.41479129,135.21,135.19,3.3]
[1764062110596,19.99242596,135.2,135.19,3.3]
[1764062110794,16.308864,135.2,135.19,3.3]
[1764062110993,16.308864,135.2,135.19,4.02]
[1764062112186,0.73833431,135.21,135.19,4.02]
[1764062112388,17.04719831,135.21,135.2,0.72]
[1764062112593,20.73076027,135.21,135.2,0.72]
[1764062112794,20.73076027,135.21,135.18,0.72]
[1764062112992,17.75719831,135.21,135.2,3.3]
[1764062113179,21.44076027,135.21,135.2,3.3]
[1764062113899,20.73076027,135.21,135.2,3.3]
[1764062114497,4.42189627,135.21,135.2,3.3]
[1764062114686,4.42189627,135.21,135.2,4.02]
[1764062114884,0.73833431,135.21,135.2,4.02]
[1764062116593,20.73076027,135.23,135.2,11.41638726]
[1764062116783,16.308864,135.22,135.21,0.72]
[1764062117899,0.73833431,135.23,135.21,8.11585839]
[1764062118104,4.42189627,135.25,135.21,8.11585839]
[1764062118303,4.42189627,135.25,135.22,0.72]
[1764062118598,4.42189627,135.25,135.23,3.3]
[1764062118991,4.42189627,135.25,135.24,0.72]
[1764062119300,0.73833431,135.25,135.24,0.72]
[1764062119504,4.42189627,135.28,135.24,0.72]
[1764062119686,16.308864,135.27,135.24,0.72]
[1764062119879,4.42189627,135.28,135.24,0.72]
[1764062120081,3.68356196,135.28,135.24,8.1139358]
[1764062120282,16.308864,135.28,135.24,26.59959093]
[1764062120504,19.99242596,135.28,135.25,0.72]
[1764062120691,3.68356196,135.26,135.23,7.39472908]
[1764062120906,3.68356196,135.24,135.22,0.72]
[1764062121090,3.68356196,135.24,135.23,3.3]
[1764062121285,0.73833431,135.26,135.23,3.3]
[1764062121482,4.42189627,135.26,135.24,0.72]
[1764062121809,0.73833431,135.26,135.24,0.72]
[1764062122104,0.73833431,135.26,135.24,8.11411124]
[1764062122404,3.68356196,135.28,135.24,8.11411124]
[1764062122594,3.68356196,135.26,135.25,4.02]
[1764062122793,3.68356196,135.27,135.25,4.02]
[1764062122986,17.04719831,135.3,135.26,0.71]
[1764062123387,20.73076027,135.3,135.26,0.71]
[1764062123819,17.04719831,135.3,135.26,0.71]
[1764062124004,4.62189627,135.31,135.27,7.39262216]
[1764062124314,0.93833431,135.31,135.28,3.3]
[1764062124513,4.62189627,135.31,135.28,4.01]
[1764062124688,16.308864,135.3,135.29,0.71]
[1764062124885,0.2,135.31,135.29,4.39356196]
[1764062125092,0.2,135.31,135.3,3.68356196]
[1764062125303,0.2,135.31,135.3,4.53572353]
[1764062125502,0.2,135.34,135.31,0.14216157]
[1764062125791,0.2,135.34,135.32,3.28]
[1764062125995,0.2,135.34,135.33,3.28]
[1764062127412,0.2,135.34,135.33,3.99]
[1764062128005,0.2,135.34,135.33,3.28]
[1764062128518,4.58356196,135.34,135.33,3.28]
[1764062128819,4.58356196,135.34,135.29,8.10139594]
[1764062129016,5.12189627,135.33,135.3,3.28]
[1764062129198,5.12189627,135.33,135.29,7.39139594]
[1764062129512,3.68356196,135.31,135.3,3.28]
[1764062129690,0.7,135.32,135.3,3.28]
[1764062129691,4.42189627,135.33,135.3,3.99]
[1764062129887,5.12189627,135.33,135.3,3.28]
[1764062130617,4.38356196,135.32,135.3,3.28]
[1764062130915,0.73833431,135.31,135.28,8.10204815]
[1764062131214,1.43833431,135.32,135.29,3.99]
[1764062131410,5.12189627,135.32,135.3,3.28]
[1764062131608,5.12189627,135.32,135.29,0.71]
[1764062131993,4.42189627,135.32,135.3,3.28]
[1764062132393,0.73833431,135.32,135.3,10.67087036]
[1764062132705,0.73833431,135.32,135.31,0.71]
[1764062133209,0.73833431,135.32,135.3,11.38087036]
[1764062134018,1.43833431,135.32,135.3,3.28]
[1764062134624,0.73833431,135.32,135.3,3.28]
[1764062135317,0.73833431,135.32,135.3,11.38096303]
[1764062135513,5.32189627,135.34,135.31,0.71]
[1764062135834,0.2,135.34,135.31,0.71]
[1764062135998,0.2,135.34,135.31,4.39356196]
[1764062136316,0.2,135.34,135.33,7.38934456]
[1764062136503,0.2,135.34,135.33,10.66934456]
[1764062136710,0.2,135.34,135.33,11.37934456]
[1764062137416,0.2,135.34,135.31,7.53205406]
[1764062137617,0.9,135.34,135.32,3.28]
[1764062137820,0.2,135.34,135.32,3.28]
[1764062138220,3.88356196,135.34,135.31,8.09989249]
[1764062138410,3.88356196,135.34,135.33,3.28]
[1764062138605,0.7,135.33,135.3,7.3905045]
[1764062138819,4.38356196,135.33,135.31,3.28]
[1764062139008,0.2,135.34,135.31,3.99]
[1764062139329,3.88356196,135.34,135.31,3.99]
[1764062139516,4.58356196,135.34,135.32,3.28]
[1764062141231,3.88356196,135.34,135.32,3.28]
[1764062143303,4.58356196,135.34,135.33,3.28]
[1764062145230,3.88356196,135.34,135.33,3.28]
[1764062146433,4.58356196,135.34,135.33,3.28]
[1764062147137,4.58356196,135.34,135.3,7.39082522]
[1764062147340,8.08941542,135.33,135.28,0.71]
[1764062147514,3.68356196,135.31,135.29,3.28]
[1764062148630,4.38356196,135.32,135.29,3.99]
[1764062148933,3.68356196,135.32,135.29,3.99]
[1764062149424,3.68356196,135.32,135.3,0.71]
[1764062149814,3.68356196,135.32,135.29,10.67125919]
[1764062150012,3.68356196,135.32,135.29,11.38125919]
[1764062150616,3.68356196,135.32,135.29,3.99]
[1764062150824,4.38356196,135.32,135.29,11.38136829]
[1764062151427,3.68356196,135.32,135.29,10.67136829]
[1764062151608,3.68356196,135.33,135.3,0.71]
[1764062152329,4.38356196,135.33,135.3,0.71]
[1764062152514,3.05260081,135.33,135.3,0.71]
[1764062152839,0.73833431,135.32,135.3,0.71]
[1764062153137,3.77093512,135.32,135.29,7.39136829]
[1764062153435,3.77093512,135.32,135.3,3.28]
[1764062153632,2.35260081,135.31,135.3,3.28]
[1764062154338,3.77093512,135.32,135.3,3.28]
[1764062154523,1.41833431,135.32,135.3,3.28]
[1764062154729,3.77093512,135.32,135.3,3.28]
[1764062155813,2.35260081,135.31,135.3,3.28]
[1764062156146,3.03260081,135.31,135.26,0.7]
[1764062156442,8.12834203,135.32,135.27,3.28]
[1764062156443,2.35260081,135.29,135.27,3.28]
[1764062156948,3.03260081,135.29,135.27,3.28]
[1764062157775,16.968864,135.31,135.27,10.67246872]
[1764062157911,16.968864,135.31,135.27,11.34246872]
[1764062157912,2.35260081,135.3,135.27,11.34246872]
[1764062158249,3.01260081,135.3,135.27,11.34246872]
[1764062158628,2.35260081,135.29,135.27,11.34246872]
[1764062159147,2.35260081,135.3,135.27,11.34246872]
[1764062159826,3.01260081,135.3,135.28,3.28]
[1764062160316,2.35260081,135.3,135.28,3.28]
[1764062160514,2.35260081,135.29,135.28,3.28]
[1764062160809,2.35260081,135.3,135.28,3.28]
[1764062161025,3.01260081,135.3,135.28,3.28]
[1764062161228,2.35260081,135.29,135.28,3.28]
[1764062161442,3.01260081,135.29,135.28,3.28]
[1764062162141,16.308864,135.26,135.21,0.67]
[1764062162340,2.35260081,135.22,135.19,8.06684116]
[1764062162511,2.35260081,135.21,135.2,3.95]
[1764062163340,2.35260081,135.21,135.2,11.3464497]
[1764062163736,2.35260081,135.21,135.18,0.67]
[1764062163943,2.35260081,135.19,135.17,0.1]
[1764062164240,2.35260081,135.18,135.17,0.1]
[1764062164630,2.35260081,135.18,135.17,3.38]
[1764062165228,3.01260081,135.18,135.17,0.1]
[1764062165534,10.69446796,135.18,135.17,3.38]
[1764062166245,10.69446796,135.18,135.17,0.1]
[1764062166246,21.99917526,135.18,135.17,0.1]
[1764062166424,0.42648471,135.16,135.13,0.1]
[1764062166623,18.94578795,135.14,135.13,0.1]
[1764062166822,16.308864,135.1,135.04,4.52776387]
[1764062167052,18.66146481,135.1,135.05,3.95]
[1764062167342,2.35260081,135.11,135.06,7.40411668]
[1764062167519,2.35260081,135.12,135.06,58.07411668]
[1764062167826,2.35260081,135.12,135.07,0.67]
[1764062168029,18.66146481,135.12,135.08,3.28]
[1764062168232,2.35260081,135.1,135.09,3.28]
[1764062168542,2.35260081,135.11,135.07,0.67]
[1764062168717,16.968864,135.14,135.07,0.67]
[1764062168913,2.35260081,135.12,135.08,3.28]
[1764062169141,16.308864,135.13,135.07,0.67]
[1764062169349,2.35260081,135.12,135.08,3.95]
[1764062169528,2.35260081,135.12,135.09,7.40247242]
[1764062169732,2.35260081,135.11,135.09,8.07247242]
[1764062170047,2.35260081,135.11,135.08,3.28]
[1764062170048,4.70520162,135.1,135.08,3.28]
[1764062170244,2.35260081,135.09,135.0,100.0]
[1764062170421,2.35260081,135.07,135.04,0.67]
[1764062171249,2.35260081,135.08,135.04,0.67]
[1764062171756,2.35260081,135.07,135.04,8.07477323]
[1764062172049,2.35260081,135.06,135.05,3.28]
[1764062172448,2.35260081,135.06,135.02,52.4638796]
[1764062172449,16.968864,135.06,135.02,2.4638796]
[1764062172657,2.35260081,135.05,135.03,0.67]
[1764062173034,18.66146481,135.06,135.03,0.67]
[1764062173226,18.66146481,135.07,135.03,0.67]
[1764062173538,0.28432314,135.08,135.04,7.40521327]
[1764062173539,2.35260081,135.08,135.04,7.40521327]
[1764062173732,2.35260081,135.08,135.05,3.28]
[1764062173933,2.35260081,135.08,135.05,3.95]
[1764062174440,34.97032881,135.1,135.06,0.67]
[1764062174632,18.66146481,135.1,135.06,0.67]
[1764062174945,40.907581,135.1,135.06,0.67]
[1764062175316,2.35260081,135.12,135.06,53.02260081]
[1764062175628,2.35260081,135.13,135.08,7.40302043]
[1764062175846,2.35260081,135.13,135.09,3.28]
[1764062176028,2.35260081,135.1,135.04,16.978864]
[1764062176231,2.35260081,135.07,135.05,3.28]
[1764062176417,2.35260081,135.06,135.03,7.40558681]
[1764062176622,2.35260081,135.06,135.04,3.28]
[1764062177024,18.66146481,135.05,135.02,2.4638796]
[1764062177225,2.35260081,135.04,135.03,3.28]
[1764062177827,18.66146481,135.05,135.03,3.28]
[1764062178036,3.01260081,135.04,135.02,2.4638796]
[1764062178344,2.35260081,135.04,135.02,5.7638796]
[1764062178644,33.277728,135.05,135.02,5.7638796]
[1764062178823,5.62580047,135.04,135.02,5.7638796]
[1764062179024,6.28580047,135.04,135.02,5.7638796]
[1764062179244,5.62580047,135.04,135.03,3.3]
[1764062180247,16.308864,135.05,135.03,3.3]
[1764062180430,21.93466447,135.05,135.03,3.3]
[1764062180824,6.36413478,135.07,135.04,0.67]
[1764062181037,16.23414029,135.07,135.04,0.67]
[1764062181438,0.66,135.07,135.03,3.3]
[1764062181657,0.73833431,135.08,135.04,0.67]
[1764062181941,6.36413478,135.1,135.05,25.91632727]
[1764062182148,6.36413478,135.1,135.06,3.3]
[1764062182653,6.36413478,135.11,135.07,0.67]
[1764062182845,16.308864,135.1,135.07,0.67]
[1764062183729,0.73833431,135.11,135.07,0.67]
[1764062183933,0.69,135.14,135.09,5.62580047]
[1764062184144,0.73833431,135.13,135.1,3.3]
[1764062184529,5.62580047,135.16,135.11,0.72]
[1764062184728,0.73833431,135.18,135.13,55.62580047]
[1764062184929,0.73833431,135.19,135.12,0.14216157]
[1764062185159,5.62580047,135.17,135.13,3.3]
[1764062185360,5.62580047,135.17,135.14,3.3]
[1764062185745,5.62580047,135.17,135.14,0.72]
[1764062185944,5.62580047,135.17,135.13,7.40028121]
[1764062186163,5.62580047,135.18,135.14,3.3]
[1764062186335,1.42833431,135.17,135.14,3.3]
[1764062186542,7.05413478,135.17,135.13,7.40028121]
[1764062186848,6.31580047,135.16,135.14,3.3]
[1764062188357,5.62580047,135.15,135.12,7.40079966]
[1764062188562,6.36413478,135.14,135.13,3.3]
[1764062188757,5.62580047,135.14,135.13,3.3]
[1764062188944,6.31580047,135.14,135.13,3.3]
[1764062189464,0.69,135.14,135.13,3.3]
[1764062190073,0.69,135.14,135.11,7.40094447]
[1764062190369,0.69,135.14,135.13,3.3]
[1764062191468,6.36413478,135.15,135.13,3.3]
[1764062191675,7.05413478,135.15,135.13,3.3]
[1764062193057,0.69,135.14,135.13,3.3]
[1764062193255,7.05413478,135.15,135.13,3.3]
[1764062194373,16.308864,135.14,135.13,3.3]
[1764062194552,1.42833431,135.16,135.13,10.70028121]
[1764062194752,23.36299878,135.16,135.13,7.40028121]
[1764062194971,23.36299878,135.16,135.14,3.3]
[1764062195174,0.69,135.15,135.14,3.3]
[1764062195479,23.36299878,135.16,135.14,3.3]
[1764062195962,17.04719831,135.16,135.14,10.69960258]
[1764062196383,17.04719831,135.16,135.14,3.3]
[1764062196384,23.36299878,135.16,135.14,3.3]
[1764062196573,5.62580047,135.15,135.14,3.3]
[1764062196762,6.31580047,135.15,135.14,3.3]
[1764062197177,6.31580047,135.15,135.11,8.12118297]
[1764062197349,7.05413478,135.14,135.12,3.3]
[1764062198065,6.36413478,135.14,135.12,3.3]
[1764062198561,6.36413478,135.14,135.12,10.70065997]
[1764062198766,0.73833431,135.14,135.12,11.42065997]
[1764062199275,0.73833431,135.14,135.12,10.70065997]
[1764062199466,0.73833431,135.14,135.13,3.3]
[1764062200584,6.36413478,135.14,135.13,3.3]
[1764062201367,7.05413478,135.14,135.13,3.3]
[1764062201757,14.45390333,135.14,135.13,3.28]
[1764062201959,7.05413478,135.14,135.13,3.28]
[1764062202172,0.73833431,135.14,135.13,3.28]
[1764062202479,0.73833431,135.15,135.13,3.28]
[1764062202680,1.42833431,135.15,135.13,3.28]
[1764062202879,0.73833431,135.15,135.13,3.28]
[1764062203057,0.73833431,135.15,135.12,7.40050335]
[1764062203258,0.73833431,135.15,135.13,3.28]
[1764062204186,19.40581471,135.16,135.13,3.28]
[1764062204384,19.40581471,135.16,135.13,4.0]
[1764062204581,2.3586164,135.15,135.13,3.28]
[1764062204889,3.0486164,135.15,135.13,3.28]
[1764062205463,3.78695071,135.14,135.08,20.86551162]
[1764062205663,2.3586164,135.13,135.09,3.28]